fUSD/lending_fUSD_20240215
["ID","MTS","AMOUNT","RATE_DAILY","PERIOD"]
[314144339,1708019510725,-541.83,0.00041643,30]
[314144340,1708019510735,-500.0,0.00041643,7]
[314144341,1708019510745,-500.0,0.00041643,30]
[314144342,1708019510755,-530.12,0.00041643,30]
[314144343,1708019510765,-856.02,0.00041643,30]
[314144344,1708019510774,-177.55944811,0.00041643,30]
[314144345,1708019510785,-483.58588546,0.00041643,30]
[314144346,1708019510795,-500.0,0.00041643,30]
[314144347,1708019510804,-28350.42830368,0.00041643,5]
[314144348,1708019510813,-28350.42830368,0.00041643,5]
[314144349,1708019510824,-28350.42830368,0.00041643,5]
[314144350,1708019510833,-28350.42830368,0.00041643,5]
[314144351,1708019510843,-28350.42830368,0.00041643,5]
[314144352,1708019510852,-28350.42830368,0.00041643,5]
[314144353,1708019510862,-28350.42830368,0.00041643,5]
[314144354,1708019510872,-28350.42830368,0.00041643,5]
[314144355,1708019510882,-28350.42830368,0.00041643,5]
[314144356,1708019510892,-28350.42730368,0.00041643,5]
[314144357,1708019510902,-600.0,0.00041643,30]
[314144358,1708019510913,-550.0,0.00041643,7]
[314144359,1708019510924,-756.7,0.00041643,30]
[314144360,1708019510934,-704.22,0.00041643,30]
[314144361,1708019510943,-500.0,0.00041643,30]
[314144362,1708019510954,-1361.43,0.00041643,7]
[314144363,1708019510964,-500.0,0.00041643,30]
[314144364,1708019510974,-1000.0,0.00041643,7]
[314144365,1708019510985,-1271.29,0.00041643,30]
[314144366,1708019510996,-598.49,0.00041643,30]
[314144367,1708019511007,-639.26946934,0.00041643,30]
[314144368,1708019511018,-974.33,0.00041643,30]
[314144369,1708019511029,-500.0,0.00041643,30]
[314144370,1708019511040,-500.0,0.00041643,30]
[314144371,1708019511050,-500.0,0.00041643,30]
[314144372,1708019511061,-500.0,0.00041643,30]
[314144373,1708019511071,-500.0,0.00041643,30]
[314144374,1708019511082,-693.16,0.00041643,30]
[314144375,1708019511092,-500.0,0.00041643,30]
[314144376,1708019511103,-177.14,0.00041643,30]
[314144377,1708019511113,-500.0,0.00041643,30]
[314144378,1708019511124,-1893.96,0.00041643,30]
[314144379,1708019511134,-1000.0,0.00041643,7]
[314144380,1708019511145,-497.71979098,0.00041643,30]
[314144381,1708019511155,-564.89,0.00041643,30]
[314144382,1708019511166,-824.46,0.00041643,30]
[314144383,1708019511176,-616.25,0.00041643,30]
[314144384,1708019511187,-500.0,0.00041643,30]
[314144385,1708019511197,-793.39,0.00041643,30]
[314144386,1708019511208,-649.79,0.00041643,30]
[314144387,1708019511218,-536.14,0.00041643,2]
[314144388,1708019511228,-500.0,0.00041643,30]
[314144389,1708019511240,-12554.5966624,0.00041643,2]
[314144390,1708019511250,-500.0,0.00041643,30]
[314144391,1708019511260,-500.0,0.00041643,30]
[314144392,1708019511270,-500.0,0.00041643,30]
[314144393,1708019511281,-4163.4128525,0.00041643,2]
[314144394,1708019511291,-500.0,0.00041643,30]
[314144395,1708019511301,-500.0,0.00041643,30]
[314144396,1708019511311,-1207.79,0.00041643,30]
[314144397,1708019511321,-500.0,0.00041643,30]
[314144398,1708019511332,-500.0,0.00041643,30]
[314144399,1708019511342,-734.84,0.00041643,2]
[314144400,1708019511352,-500.0,0.00041643,30]
[314144401,1708019511364,-1700.7249061,0.00041643,2]
[314144402,1708019511375,-1247.33,0.00041643,30]
[314144403,1708019511386,-248.64,0.00041643,30]
[314144404,1708019511396,-487.89306339,0.00041643,30]
[314144405,1708019511406,-500.0,0.00041643,30]
[314144406,1708019511417,-1915.49,0.00041643,30]
[314144407,1708019511427,-974.82,0.00041643,14]
[314144408,1708019511438,-989.83,0.00041643,30]
[314144409,1708019511450,-3861.24,0.00041643,30]
[314144410,1708019511461,-500.0,0.00041643,30]
[314144411,1708019511471,-500.0,0.00041643,30]
[314144412,1708019511481,-500.0,0.00041643,30]
[314144413,1708019511491,-1511.7533433,0.00041643,2]
[314144414,1708019511503,-500.0,0.00041643,30]
[314144415,1708019511513,-846.99,0.00041643,30]
[314144416,1708019511523,-500.0,0.00041643,30]
[314144417,1708019511534,-3759.08,0.00041643,30]
[314144418,1708019511545,-988.14,0.00041643,30]
[314144419,1708019511556,-500.0,0.00041643,30]
[314144420,1708019511566,-1634.49,0.00041643,30]
[314144421,1708019511576,-2514.11,0.00041643,30]
[314144422,1708019511587,-500.0,0.00041643,30]
[314144423,1708019511598,-4422.2,0.00041643,30]
[314144424,1708019511609,-500.0,0.00041643,30]
[314144425,1708019511620,-500.0,0.00041643,30]
[314144426,1708019511631,-663.11,0.00041643,30]
[314144427,1708019511642,-500.0,0.00041643,30]
[314144428,1708019511652,-775.66,0.00041643,30]
[314144429,1708019511662,-583.25718218,0.00041643,2]
[314144430,1708019511671,-500.0,0.00041643,30]
[314144431,1708019511681,-500.0,0.00041643,30]
[314144432,1708019511691,-607.71,0.00041643,30]
[314144433,1708019511701,-500.0,0.00041643,30]
[314144434,1708019511711,-500.0,0.00041643,7]
[314144435,1708019511721,-500.0,0.00041643,30]
[314144436,1708019511732,-500.0,0.00041643,30]
[314144437,1708019511742,-1744.6,0.00041643,30]
[314144438,1708019511752,-912.33,0.00041643,30]
[314144439,1708019511761,-500.0,0.00041643,30]
[314144440,1708019511771,-500.0,0.00041643,30]
[314144441,1708019511780,-1155.45,0.00041643,30]
[314144442,1708019511791,-1067.47,0.00041643,30]
[314144443,1708019511801,-519.85,0.00041643,30]
[314144444,1708019511811,-4410.01,0.00041643,30]
[314144445,1708019511820,-11001.71,0.00041643,30]
[314144446,1708019511829,-500.0,0.00041643,30]
[314144447,1708019511839,-3091.91,0.00041643,30]
[314144448,1708019511848,-500.0,0.00041643,30]
[314144449,1708019511859,-1258.05,0.00041643,30]
[314144450,1708019511869,-500.0,0.00041643,30]
[314144451,1708019511879,-842.08,0.00041643,30]
[314144452,1708019511889,-922.13,0.00041643,30]
[314144453,1708019511899,-656.01,0.00041643,30]
[314144454,1708019511910,-904.53,0.00041643,30]
[314144455,1708019511928,-3344.4,0.00041643,30]
[314144456,1708019511940,-2961.74,0.00041643,30]
[314144457,1708019511950,-500.0,0.00041643,30]
[314144458,1708019511961,-844.38,0.00041643,30]
[314144459,1708019511971,-351.59973932,0.00041643,30]
[314144460,1708019511982,-500.0,0.00041643,30]
[314144461,1708019511993,-500.0,0.00041643,30]
[314144462,1708019512003,-1428.06,0.00041643,30]
[314144463,1708019512014,-535.86,0.00041643,30]
[314144464,1708019512025,-1125.27,0.00041643,30]
[314144465,1708019512036,-2160.8,0.00041643,30]
[314144466,1708019512045,-825.32,0.00041643,30]
[314144467,1708019512054,-537.94,0.00041643,30]
[314144468,1708019512064,-500.0,0.00041643,30]
[314144469,1708019512074,-677.81,0.00041643,30]
[314144470,1708019512083,-500.0,0.00041643,30]
[314144471,1708019512092,-1297.24,0.00041643,30]
[314144472,1708019512103,-500.0,0.00041643,30]
[314144473,1708019512113,-559.07,0.00041643,30]
[314144474,1708019512122,-500.0,0.00041643,30]
[314144475,1708019512131,-500.0,0.00041643,30]
[314144476,1708019512142,-2776.05,0.00041643,30]
[314144477,1708019512152,-4055.04,0.00041643,30]
[314144478,1708019512162,-4988.27,0.00041643,30]
[314144479,1708019512172,-500.0,0.00041643,30]
[314144480,1708019512182,-1472.71,0.00041643,30]
[314144481,1708019512191,-500.0,0.00041643,30]
[314144482,1708019512200,-35884.0619195,0.00041643,2]
[314144483,1708019512209,-500.0,0.00041643,30]
[314144484,1708019512219,-1663.68,0.00041643,30]
[314144485,1708019512228,-4949.84,0.00041643,30]
[314144486,1708019512237,-221.51118815,0.00041643,30]
[314144487,1708019512247,-1970.1,0.00041643,30]
[314144488,1708019512257,-1101.62,0.00041643,30]
[314144489,1708019512266,-891.01,0.00041643,30]
[314144490,1708019512275,-500.0,0.00041643,30]
[314144491,1708019512285,-1111.21,0.00041643,30]
[314144492,1708019512295,-500.0,0.00041643,30]
[314144493,1708019512305,-1055.37,0.00041643,30]
[314144494,1708019512315,-1292.58,0.00041643,30]
[314144495,1708019512325,-1203.88,0.00041643,30]
[314144496,1708019512335,-469.39617059,0.00041643,30]
[314144497,1708019512345,-735.16,0.00041643,30]
[314144498,1708019512355,-996.39,0.00041643,30]
[314144499,1708019512365,-2325.06,0.00041643,30]
[314144500,1708019512375,-1282.4278994,0.00041643,2]
[314144501,1708019512385,-500.0,0.00041643,30]
[314144502,1708019512395,-454.36890919,0.00041643,30]
[314144503,1708019512405,-500.0,0.00041643,30]
[314144504,1708019512415,-500.0,0.00041643,30]
[314144505,1708019512425,-5038.29,0.00041643,30]
[314144506,1708019512434,-500.0,0.00041643,30]
[314144507,1708019512445,-500.0,0.00041643,30]
[314144508,1708019512457,-500.0,0.00041643,30]
[314144509,1708019512467,-765.74,0.00041643,30]
[314144510,1708019512476,-569.41,0.00041643,30]
[314144511,1708019512487,-184.25012253,0.00041643,30]
[314144512,1708019512496,-4016.58,0.00041643,30]
[314144513,1708019512505,-524.19,0.00041643,30]
[314144514,1708019512515,-1145.21,0.00041643,30]
[314144515,1708019512525,-836.92,0.00041643,30]
[314144516,1708019512537,-619.17,0.00041643,30]
[314144517,1708019512546,-686.87,0.00041643,30]
[314144518,1708019512557,-500.0,0.00041643,30]
[314144519,1708019512566,-1463.4,0.00041643,30]
[314144520,1708019512576,-713.6,0.00041643,30]
[314144521,1708019512585,-3254.19,0.00041643,30]
[314144522,1708019512595,-607.96,0.00041643,30]
[314144523,1708019512604,-556.07,0.00041643,30]
[314144524,1708019512615,-289.35783904,0.00041643,30]
[314144525,1708019512625,-500.0,0.00041643,30]
[314144526,1708019512635,-1450.92,0.00041643,30]
[314144527,1708019512645,-500.0,0.00041643,30]
[314144528,1708019512655,-553.92,0.00041643,30]
[314144529,1708019512664,-1417.47,0.00041643,30]
[314144530,1708019512673,-2730.4,0.00041643,30]
[314144531,1708019512683,-5934.21,0.00041643,30]
[314144532,1708019512692,-585.8,0.00041643,30]
[314144533,1708019512702,-28099.797473,0.00041643,2]
[314144534,1708019512711,-633.51,0.00041643,30]
[314144535,1708019512721,-1019.85,0.00041643,30]
[314144536,1708019512731,-701.09,0.00041643,30]
[314144537,1708019512864,-500.0,0.00041643,30]
[314144538,1708019512887,-1857.32,0.00041643,30]
[314144539,1708019512897,-3563.59,0.00041643,30]
[314144540,1708019512907,-4513.55,0.00041643,30]
[314144541,1708019512919,-500.0,0.00041643,7]
[314144542,1708019512928,-1548.7,0.00041643,30]
[314144543,1708019512938,-500.0,0.00041643,30]
[314144544,1708019512948,-707.65,0.00041643,2]
[314144545,1708019512958,-1098.48,0.00041643,30]
[314144546,1708019512967,-6547.24,0.00041643,30]
[314144547,1708019512977,-500.0,0.00041643,30]
[314144548,1708019512986,-995.72,0.00041643,30]
[314144549,1708019512996,-993.29,0.00041643,30]
[314144550,1708019513005,-219.28557877,0.00041643,30]
[314144551,1708019513015,-500.0,0.00041643,30]
[314144552,1708019513025,-47725.72,0.00041643,30]
[314144553,1708019513037,-1324.67,0.00041643,30]
[314144554,1708019513047,-5000.54,0.00041643,30]
[314144555,1708019513057,-1048.47,0.00041643,30]
[314144556,1708019513067,-1233.71,0.00041643,30]
[314144557,1708019513076,-2120.05,0.00041643,30]
[314144558,1708019513085,-552.81,0.00041643,30]
[314144559,1708019513095,-3896.96,0.00041643,30]
[314144560,1708019513105,-500.0,0.00041643,30]
[314144561,1708019513115,-4265.71,0.00041643,30]
[314144562,1708019513125,-500.0,0.00041643,30]
[314144563,1708019513135,-724.89,0.00041643,30]
[314144564,1708019513144,-588.09,0.00041643,30]
[314144565,1708019513154,-513.7,0.00041643,30]
[314144566,1708019513164,-9575.52,0.00041643,30]
[314144567,1708019513174,-2093.78,0.00041643,30]
[314144568,1708019513185,-159.619364,0.00041644,14]
[314144569,1708019513194,-151.18119458,0.00041655,30]
[314144570,1708019513204,-151.18119458,0.0004166,30]
[314144571,1708019513214,-1017.3429974,0.0004167,120]
[314144572,1708019513224,-2346827.39541167,0.00041671,10]
[314144573,1708019513234,-6421.16623997,0.00041671,2]
[314144574,1708019513244,-156.94234784,0.00041689,30]
[314144575,1708019513253,-150.0,0.00041695,3]
[314144576,1708019513263,-150.0,0.000417,15]
[314144577,1708019513272,-427468.52487936,0.000417,10]
[314144578,1708019513282,-2998.41,0.000417,7]
[314144579,1708019513292,-2160.89,0.000417,7]
[314144580,1708019513303,-3926.0,0.000417,87]
[314144581,1708019513313,-152.77622427,0.00041704,13]
[314144582,1708019513323,-3704.05,0.00041713,2]
[314144583,1708019513333,-2100.0,0.00041748,31]
[314144584,1708019513342,-122433.0,0.0004177,10]
[314144585,1708019513352,-165.24115021,0.00041772,30]
[314144586,1708019513362,-2000.0,0.0004179,5]
[314144587,1708019513372,-264.93168989,0.000418,15]
[314144588,1708019513382,-42126.67521654,0.000418,10]
[314144589,1708019513392,-100800.73576088,0.000418,8]
[314144590,1708019513402,-10000.0,0.000418,5]
[314144591,1708019513412,-156.94234784,0.00041804,30]
[314144592,1708019513422,-2050.0,0.00041811,2]
[314144593,1708019513432,-2050.0,0.00041811,2]
[314144594,1708019513443,-2050.0,0.00041811,2]
[314144595,1708019513455,-2050.0,0.00041811,2]
[314144596,1708019513464,-150.0,0.00041836,3]
[314144597,1708019513474,-151.0,0.0004184,7]
[314144598,1708019513484,-164.0,0.0004184,7]
[314144599,1708019513494,-154.03006513,0.00041863,30]
[314144600,1708019513503,-5195.2984008,0.00041871,2]
[314144601,1708019513513,-1722.8886531,0.00041871,2]
[314144602,1708019513524,-703.7879131,0.00041871,2]
[314144603,1708019513536,-625.5883751,0.00041871,2]
[314144604,1708019513547,-14849.4144829,0.00041871,2]
[314144605,1708019513557,-530.6897381,0.00041871,2]
[314144606,1708019513567,-11628.157941,0.00041871,2]
[314144607,1708019513577,-500.0,0.00041884,30]
[314144608,1708019513587,-697.56812702,0.00041899,120]
[314144609,1708019513597,-2114.35,0.000419,7]
[314144610,1708019513607,-412552.46894119,0.000419,30]
[314144611,1708019513617,-5264.77994845,0.000419,11]
[314144612,1708019513626,-921638.98027323,0.000419,10]
[314144613,1708019513636,-5013.22,0.000419,2]
[314144614,1708019513646,-308.84,0.000419,2]
[314144615,1708019513656,-152.77622427,0.000419,13]
[314144616,1708019513666,-2021.98,0.00041917,7]
[314144617,1708019513676,-312.13863167,0.00041917,30]
[314144618,1708019513686,-541.83,0.00041917,30]
[314144619,1708019513695,-639.30431339,0.00041917,7]
[314144620,1708019513705,-500.0,0.00041917,30]
[314144621,1708019513715,-530.12,0.00041917,30]
[314144622,1708019513725,-856.02,0.00041917,30]
[314144623,1708019513734,-1019.76,0.00041917,7]
[314144624,1708019513744,-1019.76,0.00041917,7]
[314144625,1708019513754,-1019.76,0.00041917,7]
[314144626,1708019513763,-1019.76,0.00041917,7]
[314144627,1708019513773,-1019.76,0.00041917,7]
[314144628,1708019513782,-1019.76,0.00041917,7]
[314144629,1708019513793,-1019.76,0.00041917,7]
[314144630,1708019513802,-1019.76,0.00041917,7]
[314144631,1708019513812,-1019.76,0.00041917,7]
[314144632,1708019513822,-1019.76,0.00041917,7]
[314144633,1708019513832,-1019.76,0.00041917,30]
[314144634,1708019513842,-1019.76,0.00041917,30]
[314144635,1708019513852,-1019.76,0.00041917,30]
[314144636,1708019513861,-1019.76,0.00041917,30]
[314144637,1708019513871,-500.0,0.00041917,30]
[314144638,1708019513881,-600.0,0.00041917,30]
[314144639,1708019513891,-550.0,0.00041917,7]
[314144640,1708019513902,-756.7,0.00041917,30]
[314144641,1708019513914,-704.22,0.00041917,30]
[314144642,1708019513924,-500.0,0.00041917,30]
[314144643,1708019513966,-1361.43,0.00041917,7]
[314144644,1708019513976,-500.0,0.00041917,30]
[314144645,1708019513987,-1000.0,0.00041917,7]
[314144646,1708019513997,-1271.29,0.00041917,30]
[314144647,1708019514007,-598.49,0.00041917,30]
[314144648,1708019514017,-974.33,0.00041917,30]
[314144649,1708019514027,-500.0,0.00041917,30]
[314144650,1708019514038,-500.0,0.00041917,30]
[314144651,1708019514047,-500.0,0.00041917,30]
[314144652,1708019514057,-596.09801506,0.00041917,30]
[314144653,1708019514066,-500.0,0.00041917,30]
[314144654,1708019514077,-693.16,0.00041917,30]
[314144655,1708019514087,-500.0,0.00041917,30]
[314144656,1708019514097,-177.14,0.00041917,30]
[314144657,1708019514107,-500.0,0.00041917,30]
[314144658,1708019514118,-1893.96,0.00041917,30]
[314144659,1708019514128,-1000.0,0.00041917,7]
[314144660,1708019514138,-564.89,0.00041917,30]
[314144661,1708019514147,-824.46,0.00041917,30]
[314144662,1708019514157,-616.25,0.00041917,30]
[314144663,1708019514167,-321.28,0.00041917,30]
[314144664,1708019514177,-793.39,0.00041917,30]
[314144665,1708019514187,-649.79,0.00041917,30]
[314144666,1708019514197,-536.14,0.00041917,2]
[314144667,1708019514206,-500.0,0.00041917,30]
[314144668,1708019514216,-581.62121198,0.00041917,30]
[314144669,1708019514226,-500.0,0.00041917,30]
[314144670,1708019514236,-500.0,0.00041917,30]
[314144671,1708019514245,-500.0,0.00041917,30]
[314144672,1708019514255,-500.0,0.00041917,30]
[314144673,1708019514265,-1207.79,0.00041917,30]
[314144674,1708019514275,-500.0,0.00041917,30]
[314144675,1708019514286,-500.0,0.00041917,30]
[314144676,1708019514296,-734.84,0.00041917,2]
[314144677,1708019514305,-500.0,0.00041917,30]
[314144678,1708019514315,-1247.33,0.00041917,30]
[314144679,1708019514325,-327.76,0.00041917,30]
[314144680,1708019514335,-1915.49,0.00041917,30]
[314144681,1708019514345,-974.82,0.00041917,14]
[314144682,1708019514355,-989.83,0.00041917,30]
[314144683,1708019514365,-3861.24,0.00041917,30]
[314144684,1708019514376,-500.0,0.00041917,30]
[314144685,1708019514386,-500.0,0.00041917,30]
[314144686,1708019514396,-440.19,0.00041917,30]
[314144687,1708019514405,-268.21945475,0.00041917,30]
[314144688,1708019514415,-846.99,0.00041917,30]
[314144689,1708019514425,-500.0,0.00041917,30]
[314144690,1708019514435,-3759.08,0.00041917,30]
[314144691,1708019514445,-988.14,0.00041917,30]
[314144692,1708019514458,-500.0,0.00041917,30]
[314144693,1708019514468,-1634.49,0.00041917,30]
[314144694,1708019514478,-2514.11,0.00041917,30]
[314144695,1708019514489,-500.0,0.00041917,30]
[314144696,1708019514499,-4422.2,0.00041917,30]
[314144697,1708019514508,-500.0,0.00041917,30]
[314144698,1708019514518,-500.0,0.00041917,30]
[314144699,1708019514529,-663.11,0.00041917,30]
[314144700,1708019514540,-500.0,0.00041917,30]
[314144701,1708019514550,-775.66,0.00041917,30]
[314144702,1708019514559,-500.0,0.00041917,30]
[314144703,1708019514569,-500.0,0.00041917,30]
[314144704,1708019514578,-607.71,0.00041917,30]
[314144705,1708019514587,-500.0,0.00041917,30]
[314144706,1708019514598,-500.0,0.00041917,7]
[314144707,1708019514607,-500.0,0.00041917,30]
[314144708,1708019514617,-500.0,0.00041917,30]
[314144709,1708019514627,-1744.6,0.00041917,30]
[314144710,1708019514637,-912.33,0.00041917,30]
[314144711,1708019514647,-500.0,0.00041917,30]
[314144712,1708019514657,-500.0,0.00041917,30]
[314144713,1708019514666,-1155.45,0.00041917,30]
[314144714,1708019514675,-1067.47,0.00041917,30]
[314144715,1708019514685,-519.85,0.00041917,30]
[314144716,1708019514694,-4410.01,0.00041917,30]
[314144717,1708019514704,-11001.71,0.00041917,30]
[314144718,1708019514713,-500.0,0.00041917,30]
[314144719,1708019514723,-3091.91,0.00041917,30]
[314144720,1708019514732,-500.0,0.00041917,30]
[314144721,1708019514742,-1258.05,0.00041917,30]
[314144722,1708019514752,-500.0,0.00041917,30]
[314144723,1708019514761,-842.08,0.00041917,30]
[314144724,1708019514771,-922.13,0.00041917,30]
[314144725,1708019514781,-656.01,0.00041917,30]
[314144726,1708019514792,-904.53,0.00041917,30]
[314144727,1708019514801,-3344.4,0.00041917,30]
[314144728,1708019514811,-2961.74,0.00041917,30]
[314144729,1708019514820,-500.0,0.00041917,30]
[314144730,1708019514829,-844.38,0.00041917,30]
[314144731,1708019514839,-500.0,0.00041917,30]
[314144732,1708019514849,-500.0,0.00041917,30]
[314144733,1708019514858,-1428.06,0.00041917,30]
[314144734,1708019514868,-535.86,0.00041917,30]
[314144735,1708019514877,-1125.27,0.00041917,30]
[314144736,1708019514887,-2160.8,0.00041917,30]
[314144737,1708019514896,-825.32,0.00041917,30]
[314144738,1708019514906,-537.94,0.00041917,30]
[314144739,1708019514916,-500.0,0.00041917,30]
[314144740,1708019514926,-677.81,0.00041917,30]
[314144741,1708019514937,-500.0,0.00041917,30]
[314144742,1708019514947,-1297.24,0.00041917,30]
[314144743,1708019514957,-500.0,0.00041917,30]
[314144744,1708019514967,-559.07,0.00041917,30]
[314144745,1708019514977,-500.0,0.00041917,30]
[314144746,1708019514987,-500.0,0.00041917,30]
[314144747,1708019514996,-2776.05,0.00041917,30]
[314144748,1708019515006,-4055.04,0.00041917,30]
[314144749,1708019515016,-4988.27,0.00041917,30]
[314144750,1708019515026,-500.0,0.00041917,30]
[314144751,1708019515036,-1472.71,0.00041917,30]
[314144752,1708019515046,-500.0,0.00041917,30]
[314144753,1708019515056,-500.0,0.00041917,30]
[314144754,1708019515065,-1663.68,0.00041917,30]
[314144755,1708019515075,-4949.84,0.00041917,30]
[314144756,1708019515084,-1970.1,0.00041917,30]
[314144757,1708019515094,-1101.62,0.00041917,30]
[314144758,1708019515103,-891.01,0.00041917,30]
[314144759,1708019515113,-500.0,0.00041917,30]
[314144760,1708019515123,-1111.21,0.00041917,30]
[314144761,1708019515134,-340.63276601,0.00041917,30]
[314144762,1708019515144,-1055.37,0.00041917,30]
[314144763,1708019515154,-1292.58,0.00041917,30]
[314144764,1708019515164,-1203.88,0.00041917,30]
[314144765,1708019515174,-735.16,0.00041917,30]
[314144766,1708019515184,-996.39,0.00041917,30]
[314144767,1708019515332,-2325.06,0.00041917,30]
[314144768,1708019515343,-500.0,0.00041917,30]
[314144769,1708019515353,-500.0,0.00041917,30]
[314144770,1708019515362,-500.0,0.00041917,30]
[314144771,1708019515372,-5038.29,0.00041917,30]
[314144772,1708019515382,-500.0,0.00041917,30]
[314144773,1708019515392,-500.0,0.00041917,30]
[314144774,1708019515402,-475.20913046,0.00041917,30]
[314144775,1708019515411,-765.74,0.00041917,30]
[314144776,1708019515421,-569.41,0.00041917,30]
[314144777,1708019515430,-4016.58,0.00041917,30]
[314144778,1708019515439,-524.19,0.00041917,30]
[314144779,1708019515453,-1145.21,0.00041917,30]
[314144780,1708019515462,-836.92,0.00041917,30]
[314144781,1708019515472,-619.17,0.00041917,30]
[314144782,1708019515482,-686.87,0.00041917,30]
[314144783,1708019515492,-500.0,0.00041917,30]
[314144784,1708019515501,-1463.4,0.00041917,30]
[314144785,1708019515510,-713.6,0.00041917,30]
[314144786,1708019515520,-3254.19,0.00041917,30]
[314144787,1708019515531,-607.96,0.00041917,30]
[314144788,1708019515542,-556.07,0.00041917,30]
[314144789,1708019515552,-500.0,0.00041917,30]
[314144790,1708019515562,-1450.92,0.00041917,30]
[314144791,1708019515572,-500.0,0.00041917,30]
[314144792,1708019515582,-553.92,0.00041917,30]
[314144793,1708019515592,-1417.47,0.00041917,30]
[314144794,1708019515602,-2730.4,0.00041917,30]
[314144795,1708019515612,-5934.21,0.00041917,30]
[314144796,1708019515621,-585.8,0.00041917,30]
[314144797,1708019515631,-633.51,0.00041917,30]
[314144798,1708019515641,-1019.85,0.00041917,30]
[314144799,1708019515650,-701.09,0.00041917,30]
[314144800,1708019515659,-500.0,0.00041917,30]
[314144801,1708019515669,-1857.32,0.00041917,30]
[314144802,1708019515679,-3563.59,0.00041917,30]
[314144803,1708019515688,-4513.55,0.00041917,30]
[314144804,1708019515698,-500.0,0.00041917,7]
[314144805,1708019515707,-1548.7,0.00041917,30]
[314144806,1708019515717,-500.0,0.00041917,30]
[314144807,1708019515726,-707.65,0.00041917,2]
[314144808,1708019515736,-1098.48,0.00041917,30]
[314144809,1708019515746,-6547.24,0.00041917,30]
[314144810,1708019515756,-500.0,0.00041917,30]
[314144811,1708019515765,-995.72,0.00041917,30]
[314144812,1708019515775,-993.29,0.00041917,30]
[314144813,1708019515784,-500.0,0.00041917,30]
[314144814,1708019515795,-47725.72,0.00041917,30]
[314144815,1708019515805,-1324.67,0.00041917,30]
[314144816,1708019515814,-5000.54,0.00041917,30]
[314144817,1708019515823,-1048.47,0.00041917,30]
[314144818,1708019515832,-1233.71,0.00041917,30]
[314144819,1708019515842,-2120.05,0.00041917,30]
[314144820,1708019515852,-552.81,0.00041917,30]
[314144821,1708019515861,-3896.96,0.00041917,30]
[314144822,1708019515871,-500.0,0.00041917,30]
[314144823,1708019515881,-4265.71,0.00041917,30]
[314144824,1708019515891,-500.0,0.00041917,30]
[314144825,1708019515900,-724.89,0.00041917,30]
[314144826,1708019515910,-588.09,0.00041917,30]
[314144827,1708019515922,-513.7,0.00041917,30]
[314144828,1708019515932,-9575.52,0.00041917,30]
[314144829,1708019515941,-2093.78,0.00041917,30]
[314144830,1708019515951,-151.18119458,0.00041952,30]
[314144831,1708019515961,-158.0,0.0004197,61]
[314144832,1708019515971,-341.0,0.0004197,61]
[314144833,1708019515980,-150.0,0.00041978,3]
[314144834,1708019515990,-158.0,0.0004198,61]
[314144835,1708019516000,-158.0,0.0004198,61]
[314144836,1708019516009,-170.0,0.0004198,61]
[314144837,1708019516018,-341.0,0.0004198,61]
[314144838,1708019516028,-341.0,0.0004198,61]